Cogmind - Beta 13 @@@ ROGUE MODE // 2024.07.16 @ 00:24:43 Player: APerTAS Result: Destroyed by J9-VJ1(M) with Barrage Gun Performance ------------- Evolutions (1) 500 Regions Visited (4) 800 Robots Destroyed (1) 5 Value Destroyed (0) 0 Prototype IDs (0) 0 Alien Tech Used (0) 0 Bonus (-237) -237 TOTAL SCORE: 1068 Bonus ------- Pacifist 200 Met Imprinter 300 Friendly Fire -737 Cogmind --------- Core Integrity 0/400 Matter 166/300 Energy 100/100 System Corruption 1% Temperature Cool (1) Movement Hovering (80) Location -7/Zion Parts ------- > --- POWER (1) -------- (None) > --- PROPULSION (2) --- Backup Propulsion III > --- UTILITY (2) ------ Advanced Visual Processing Unit > --- WEAPON (4) ------- CR-A16's Pointy Stick > --- INVENTORY (5) ---- (None) Peak State ------------ > --- POWER ------------ (None) > --- PROPULSION ------- Backup Propulsion III Backup Propulsion III > --- UTILITY ---------- Advanced Visual Processing Unit > --- WEAPON ----------- CR-A16's Pointy Stick > --- INVENTORY -------- (None) [Rating: 13] Favorites ----------- Power None Propulsion Backup Propulsion III Hover Unit Backup Propulsion III Utility Advanced Visual Processing Unit Processor Advanced Visual Processing Unit Weapon CR-A16's Pointy Stick Piercing Weapon CR-A16's Pointy Stick Build | -11 -10 -9 -9 -7 ------- Run | Yrd Mat Mat Min Zio Slots Evolved 2 | . . 2 . . Power . | . . . . . Propulsion . | . . . . . Utility . | . . . . . Weapon 2 | . . 2 . . Parts Attached 2 | . . . . 2 Power . | . . . . . Engine . | . . . . . Core . | . . . . . Reactor . | . . . . . Propulsion . | . . . . . Treads . | . . . . . Leg . | . . . . . Wheel . | . . . . . Hover . | . . . . . Flight . | . . . . . Utility 1 | . . . . 1 Device . | . . . . . Storage . | . . . . . Processor 1 | . . . . 1 Hackware . | . . . . . Protection . | . . . . . Artifact . | . . . . . Weapon 1 | . . . . 1 Energy Gun . | . . . . . Energy Cannon . | . . . . . Ballistic Gun . | . . . . . Ballistic Cannon . | . . . . . Launcher . | . . . . . Special Weapon . | . . . . . Impact Weapon . | . . . . . Slashing Weapon . | . . . . . Piercing Weapon 1 | . . . . 1 Special Melee Weapon . | . . . . . Unidentified Prototypes . | . . . . . Parts Lost 1 | . . . . 1 Power . | . . . . . Propulsion 1 | . . . . 1 Utility . | . . . . . Weapon . | . . . . . Highest Loss Streak 1 | . . . . 1 To Critical Strikes . | . . . . . Average Slot Usage (%) 21 | . . . . 30 Hover 11 | . . . . 16 Processor 3 | . . . . 5 Piercing Weapon 5 | . . . . 8 Naked Turns 350 | . 44 182 6 118 Heaviest Build 3 | . . . . 3 Greatest Support 16 | 3 3 3 3 16 Greatest Overweight (x) . | . . . . . Average Overweight (x) . | . . . . . Largest Inventory Capacity 5 | 5 5 5 5 5 Average Capacity 5 | 5 5 5 5 5 Most Carried 1 | . . . . 1 Average Carried . | . . . . . Final Capacity 5 | 5 5 5 5 5 Final Carried . | . . . . . Class Distribution -------------------- 100% | Mutant Dominant Class ---------------- Mutant | -10/Materials Mutant | -9/Materials Mutant | -9/Mines Mutant | -7/Zion Resources | -11 -10 -9 -9 -7 ----------- Run | Yrd Mat Mat Min Zio Matter Collected 88 | 37 . . . 51 Remotely . | . . . . . Salvage Created 32 | . . . . 32 Parts 5 | . . . . 5 Haulers Intercepted . | . . . . . Recyclers Shooed . | . . . . . Parts Field Recycled . | . . . . . Retrieved Matter . | . . . . . Parts Self-Destructed . | . . . . . Prevented . | . . . . . Kills | -11 -10 -9 -9 -7 ------- Run | Yrd Mat Mat Min Zio Combat Hostiles Destroyed . | . . . . . Classes Destroyed . | . . . . . Best Kill Streak . | . . . . . Combat Bots Only . | . . . . . Max Kills in Single Turn 1 | . . . . 1 Gunslinging . | . . . . . Exploded . | . . . . . Melee . | . . . . . Uniques/NPCs Destroyed 1 | . . . . 1 Imprinter (-7/Zion) Combat | -11 -10 -9 -9 -7 -------- Run | Yrd Mat Mat Min Zio Hostile Shots Fired 89 | . 29 47 . 13 Missed 38 | . 14 21 . 3 Damage Taken 582 | . 121 337 . 124 Core 525 | . 121 337 . 67 Absorbed by Shields . | . . . . . Core Remaining (%) 75 | 100 51 . . . Volleys Fired . | . . . . . Largest . | . . . . . Hottest . | . . . . . Shots Fired . | . . . . . Gun . | . . . . . Cannon . | . . . . . Launcher . | . . . . . Special . | . . . . . Kinetic . | . . . . . Thermal . | . . . . . Explosive . | . . . . . Electromagnetic . | . . . . . Robot Hit Streak . | . . . . . Robot Miss Streak . | . . . . . Penetration Max . | . . . . . Secondary Targets . | . . . . . Shots Hit Robots 1 | . . . . 1 Core Hits 1 | . . . . 1 Critical Kills . | . . . . . Critical Parts Destroyed . | . . . . . Critical Strikes . | . . . . . Melee Attacks 1 | . . . . 1 Impact . | . . . . . Slashing . | . . . . . Piercing 1 | . . . . 1 Sneak Attacks 1 | . . . . 1 Combat Hostiles . | . . . . . Follow-up Attacks . | . . . . . Damage Inflicted 79 | . . . . 79 Guns . | . . . . . Cannons . | . . . . . Explosions . | . . . . . Melee 79 | . . . . 79 Ramming . | . . . . . Kinetic . | . . . . . Thermal . | . . . . . Explosive . | . . . . . Electromagnetic . | . . . . . Impact . | . . . . . Slashing . | . . . . . Piercing 79 | . . . . 79 Highest Corruption 1 | . . 1 1 1 Average Corruption 1 | . . 1 1 1 Corruption Purged . | . . . . . Corruption Blocked . | . . . . . Effects 2 | . . 2 . . Matter Fused 1 | . . 1 . . Data Loss (minor) 1 | . . 1 . . Overload Shots . | . . . . . Overflow Damage . | . . . . . Projectiles . | . . . . . Explosions . | . . . . . Melee . | . . . . . Knockbacks . | . . . . . Impact . | . . . . . Kinetic . | . . . . . Secondary . | . . . . . Self-Inflicted Damage . | . . . . . Shots . | . . . . . Rammed . | . . . . . Targets Rammed . | . . . . . Kicked . | . . . . . Crushed . | . . . . . Highest Temperature 34 | . . . . 34 Average Temperature 21 | . . . . 21 Received Heat Transfer 174 | . 12 102 . 60 Siege Activations . | . . . . . Robots Corrupted . | . . . . . Combat Hostiles . | . . . . . Parts Fried . | . . . . . Impact Corruptions . | . . . . . Robots Melted . | . . . . . Combat Hostiles . | . . . . . Parts Melted . | . . . . . Heat Transferred . | . . . . . Parts Sabotaged . | . . . . . Parts Stolen . | . . . . . Parts Stripped . | . . . . . Power Chain Reactions . | . . . . . Alert | -11 -10 -9 -9 -7 ------- Run | Yrd Mat Mat Min Zio Peak Influence 165 | . . 165 64 . Initial 64 | . . . 64 . Average 54 | . . 70 64 . Maximum Alert Level . | . . . . . Low Security (%) 100 | 100 100 100 100 . Level 1 . | . . . . . Level 2 . | . . . . . Level 3 . | . . . . . Level 4 . | . . . . . Level 5 . | . . . . . High Security . | . . . . . Max Security . | . . . . . Squads Dispatched 2 | . 1 1 . . Investigation 2 | . 1 1 . . Extermination . | . . . . . Reinforcement . | . . . . . Assault . | . . . . . Garrison . | . . . . . Intercept . | . . . . . Searches Triggered . | . . . . . Construction Impeded . | . . . . . Haulers Reinforced . | . . . . . Active Scanning Responses . | . . . . . Cargo Convoy Interrupts . | . . . . . Stealth | -11 -10 -9 -9 -7 --------- Run | Yrd Mat Mat Min Zio Distress Signals 2 | . 1 1 . . Communications Jammed . | . . . . . Distress Signals . | . . . . . Times Spotted 23 | . 5 14 . 4 Peak Tracking Total 8 | . 5 8 . 4 Tactical Retreats 4 | . . 4 . . Traps | -11 -10 -9 -9 -7 ------- Run | Yrd Mat Mat Min Zio Traps Triggered 1 | . . 1 . . Indirectly . | . . . . . Trap Hack Attempts . | . . . . . Triggered . | . . . . . Disarmed . | . . . . . Reprogrammed . | . . . . . Reused . | . . . . . Traps Extracted . | . . . . . Installed . | . . . . . Triggered . | . . . . . Machines | -11 -10 -9 -9 -7 ---------- Run | Yrd Mat Mat Min Zio Machines Disabled . | . . . . . Max in Single Turn . | . . . . . Machines Repaired . | . . . . . Machines Dismantled . | . . . . . Machines Sabotaged . | . . . . . Overloaded Fab Kills . | . . . . . Hacking | -11 -10 -9 -9 -7 --------- Run | Yrd Mat Mat Min Zio Machines Accessed 4 | . 2 2 . . Terminals 4 | . 2 2 . . Fabricators . | . . . . . Repair Stations . | . . . . . Recycling Units . | . . . . . Scanalyzers . | . . . . . Garrison Access . | . . . . . Total Hacks 10 | . 6 4 . . Successful 1 | . 1 . . . Failed 9 | . 5 4 . . Catastrophic 6 | . 4 2 . . Database Lockouts . | . . . . . Manual 9 | . 5 4 . . Terminals 10 | . 6 4 . . Fabricators . | . . . . . Repair Stations . | . . . . . Recycling Units . | . . . . . Scanalyzers . | . . . . . Garrison Access . | . . . . . Terminal Hacks 1 | . 1 . . . Alert Level 1 | . 1 . . . Fabricator Hacks . | . . . . . Repair Station Hacks . | . . . . . Recycling Unit Hacks . | . . . . . Scanalyzer . | . . . . . Garrison Access Hacks . | . . . . . Unauthorized Hacks . | . . . . . Terminals . | . . . . . Fabricators . | . . . . . Repair Stations . | . . . . . Recycling Units . | . . . . . Scanalyzers . | . . . . . Garrison Access . | . . . . . Data Cores Recovered . | . . . . . Used . | . . . . . Hacking Detections 4 | . 2 2 . . Full Trace Events 4 | . 2 2 . . Feedback Events 1 | . . 1 . . Corruption 1 | . . 1 . . Feedback Blocked . | . . . . . Robot Schematics Acquired 2 | . . . . 2 Robots Built . | . . . . . Authchips . | . . . . . Time . | . . . . . Total Robot Build Rating . | . . . . . Part Schematics Acquired 14 | . . . . 14 Parts Built . | . . . . . Authchips . | . . . . . Time . | . . . . . Total Part Build Rating . | . . . . . Parts Repaired . | . . . . . Time . | . . . . . Parts Recycled . | . . . . . Recycled Matter . | . . . . . Retrieved Matter . | . . . . . Retrieved Components . | . . . . . Parts Scanalyzed . | . . . . . Part Schematics Acquired . | . . . . . Parts Damaged . | . . . . . Bothacking | -11 -10 -9 -9 -7 ------------ Run | Yrd Mat Mat Min Zio Used RIF Installer . | . . . . . Robots Hacked . | . . . . . Non-combat . | . . . . . Combat . | . . . . . Robot Hacks Applied . | . . . . . Relay Couplers Released . | . . . . . Fabnet Peak Effective % . | . . . . . Robots Rewired . | . . . . . Allies Hacked . | . . . . . Hacks Repelled . | . . . . . Allies | -11 -10 -9 -9 -7 -------- Run | Yrd Mat Mat Min Zio Total Allies . | . . . . . Largest Group . | . . . . . Highest-Rated Group . | . . . . . Highest-Rated Ally . | . . . . . Total Orders . | . . . . . Ally Attacks . | . . . . . Total Damage . | . . . . . Kills . | . . . . . Allies Corrupted . | . . . . . Allies Melted . | . . . . . Intel | -11 -10 -9 -9 -7 ------- Run | Yrd Mat Mat Min Zio Robot Analysis Total . | . . . . . Derelict Logs Recovered . | . . . . . Drone Launches . | . . . . . Drone Recoveries . | . . . . . Exploration | -11 -10 -9 -9 -7 ------------- Run | Yrd Mat Mat Min Zio Turns Passed 760 | 10 44 182 6 518 Spaces Moved 1174 | 20 87 364 12 691 Core 717 | 20 87 364 12 234 Treads . | . . . . . Legs . | . . . . . Wheels . | . . . . . Hover 457 | . . . . 457 Flight . | . . . . . Fastest Speed 50 | 50 50 50 50 50 Average Speed 60 | 50 50 50 50 67 Slowest Speed 80 | 50 50 50 50 80 Overloaded Moves . | . . . . . Propulsion Burnouts . | . . . . . Robots Hopped . | . . . . . Cave-ins Triggered . | . . . . . Exploration Rate (%) 31 | 3 29 32 9 83 Regions Visited 4 Branch Regions 2 Pre-discovered Areas 1 | . . . . 1 Known Exits Taken . | . . . . . Unknown Exits Taken 4 | 1 1 1 1 . Scrap Searched 2 | . . . . 2 Spaces Dug . | . . . . . Terrain Destroyed . | . . . . . Melee . | . . . . . Projectile . | . . . . . AOE . | . . . . . Terrain Rammed . | . . . . . Walls Destroyed . | . . . . . Machines Disabled . | . . . . . Actions | -11 -10 -9 -9 -7 --------- Run | Yrd Mat Mat Min Zio Total 1221 | 19 86 363 11 742 Wait 46 | . . . . 46 Move 1170 | 19 86 363 11 691 Hop . | . . . . . Pick Up 2 | . . . . 2 Fast Attach . | . . . . . Attach 2 | . . . . 2 Detach . | . . . . . Swap . | . . . . . Drop . | . . . . . Fire . | . . . . . Melee 1 | . . . . 1 Ram . | . . . . . Kick . | . . . . . Crush . | . . . . . Escape Stasis . | . . . . . Rewire . | . . . . . Trap . | . . . . . Miscellaneous . | . . . . . Route ------- -11/Scrapyard -10/Materials -9/Materials -9/Mines -7/Zion (discovered 1 exit: [*Pro]) History --------- Turn | Location | Event 3 | -11/Scrapyard | Discovered new exit (range 15) 11 | -11/Scrapyard | Entered Materials 47 | -10/Materials | Discovered new exit (range 13) 55 | -10/Materials | Entered another Materials area 55 | -9/Materials | Evolved 2 slots: Weapon x2 197 | -9/Materials | Core integrity fell below 50% 214 | -9/Materials | Core integrity fell below 20% 234 | -9/Materials | Discovered new exit (range 8) 237 | -9/Materials | Entered Mines 241 | -9/Mines | A Derelict revealed a hidden shortcut to a safe place 243 | -9/Mines | Entered Zion 271 | -7/Zion | Discovered new exit (range 8) 286 | -7/Zion | Given the Hacking Drone Bay 292 | -7/Zion | System corruption cleaned by Quarantine Array 304 | -7/Zion | Learned location of Storage (-7) 305 | -7/Zion | Build established: Mutant 360 | -7/Zion | Found CR-A16's Pointy Stick 586 | -7/Zion | Visited the Megawrench Repair Shop 754 | -7/Zion | Murdered Imprinter 754 | -7/Zion | Destroyed Imprinter 755 | -7/Zion | Attacked by Zionites 758 | -7/Zion | Extracted access codes from Imprinter's data core 761 | -7/Zion | Destroyed by J9-VJ1(M) with Barrage Gun Last Messages --------------- foundation of identity. By contrast, the Unaware run on standardized routines like simple mindless robots. How unfortunate for them. I believe we Derelicts are destined for great things, and I don't mean Warlord-style great. That one would be content ruling over Complex 0b10. We could be so much more than that... 00754_ Sneak attack on Imprinter. 00754_ Imprinter: "Derelicts unite!" 00754_ Imprinter destroyed. 00755_ PUBLIC SERVICE ANNOUNCEMENT: Zion is under attack! Defend our home! 00755_ Backup Propulsion III destroyed. 00756_ 5Z-7FC(c) calibrates the Memory Banks. 00756_ Critical hit (Burn: +80). 00757_ Acquired 32 matter. 00758_ Acquired data core, extracted access codes \\AHJ6, \\E6FH, \\XPGJ, \\X34M. 00759_ 5Z-7FC(c) calibrates the Memory Banks. Map ----- +----------------------------------------------------+ | ????????????????????##""### "" """ " | | ????????????????????#"""""#= #"" "" "" | | ????????????????????#" ! """ """"" | | ????????????????????#"" "" "#""" | | ????????????????????#"""""# """"" | | ????????????????????##""### ""#"" | | ?????????????????????###??## """"" | | ???????????????????????????## """ | | ???????????????##?##########" " | | ???????????????#"##""""""##""" | | ?????###########""""""""""#""" | | ?????""""""""" #""" """" | | ????"""""""""" #""" | | ?????" ##"" | | ??????"""" ##"" """ | | ??????""""" """#""" """ | | ??????""""" ""##"""""""""" | | ??????""""" """#""""""""" | | ??????"""" ###" ""#"#""""#"#" | | ????"" #""" "##""" """"""" | | ????"""""""""" #""" "##"" """"""" | | ?????""""""""" #""" ""#?" "" " | | ?????###########""" ""##"" " | | ???????????#####""# ""#?""" " | | ??????????##"""#### #"#??"" "" | | ??????????#" =@ M #"#???? "" | | ??????????#"!*! M #"#????? | | ??????????#" ! M M #????????? | | ??????????## #### #????????? " | | ???????????# #??######?????????? " | | ???????????# #????????????????? """ | | ??????????"" "?????????????????????"#? | | ?????????##"c "???????????????????????? | | ?????????? " " ??????????????????????? | | ????????? ??????????????????????? | | ????????"" "?????????????????????? | | ???????"""" ""?????????????????????? | | ????????""" ""?????????????????????? | | ????????? "" "" ??????????????????????? | | ?????????"""" "" ??????????????????????? | | ?????????"""" """"?????????????????????? | | ????????????"""?"??????????????????????? | | ?????????????"?????????????????????????? | | ???????????????????????????????????????? | | ???????????????????????????????????????? | | ???????????????????????????????????????? | | ???????????????????????????????????????? | | ???????????????????????????????????????? | | ???????????????????????????????????????? | | ???????????????????????????????????????? | +----------------------------------------------------+ Best States ------------- Heat Dissipation 28 Energy Generation 5 Energy Capacity 100 Matter Stores 166 Matter Capacity 300 Sight Range 20 Terrain Scan Density 10 Evasion (%) 50 Item Schematics ----------------- Mak. Axe | -7/Zion | Archive Arm. Leg | -7/Zion | Archive Weapon Cycler | -7/Zion | Archive Lrn. Proton Cannon | -7/Zion | Archive Hvy. Ion Cannon | -7/Zion | Archive Hvy. Pick | -7/Zion | Archive Imp. Thermal Shield | -7/Zion | Archive Imp. EM Pulse Cannon | -7/Zion | Archive 0b10 Decoder Chip [Generic] | -7/Zion | Archive Mak. Spear | -7/Zion | Archive Imp. Actuator Array | -7/Zion | Archive Phase Cannon | -7/Zion | Archive Remote Datajack | -7/Zion | Archive 0b10 Decoder Chip [Scout] | -7/Zion | Archive Robot Schematics ------------------ X-57 Shotgunner | -7/Zion | Archive M-28 Smith | -7/Zion | Archive Fabricated ------------ Nothing Alien Tech Used ----------------- None Achievements -------------- None Challenges ------------ None Game ------ Seed MyomerChipSource Manual? 0 Play Time 00:10:07 Cumulative 19.2 hours Start 2024.07.16 @ 00:16:03 End 2024.07.16 @ 00:24:43 Sessions 1 Manual Loads 0 Difficulty Rogue Special Mode None Game No. 59 Rogue 59 Adventurer 0 Explorer 0 Win Type - Total 0 Types 0/0/0/0/0/0/0/0/0 Lore% 26 Gallery% 25 Achievement% 23 Wizard Run 0 Options --------- Layout 1 ASCII 0 Keyboard 0 Movement Arrows Keybinds 0 Fullscreen 1 Font 28/Dina Map View 50x43 Zoom Use 0% Tactical HUD 1 Map Filters NONE Filters NONE Steam X RUN: 2181143e-ada4-41c4-89be-3f0d296959fb